[Event "Titled Tuesday Blitz July 25 Late 2023"]
[White "K2JW"]
[Black "Skatchkov, Valery"]
[BlackFideId "24195812"]
[WhiteElo "2353"]
[BlackElo "2673"]
[Result "1-0"]
[Round "1"]
[TimeControl "180+2"]
[Date "2023.07.25"]
[WhiteClock "0:00:40"]
[BlackClock "0:02:28"]
[Board "107"]

1. d4 {[%clk 0:03:00]}  Nf6 {[%clk 0:02:50]} 2. Nf3 {[%clk 0:02:58]}  e6 {[%clk 0:02:49]} 3. c4 {[%clk 0:02:58]}  d5 {[%clk 0:02:49]} 4. Nc3 {[%clk 0:02:58]}  Ne4 {[%clk 0:02:46]} 5. e3 {[%clk 0:02:13]}  f5 {[%clk 0:02:43]} 6. Bd3 {[%clk 0:02:12]}  c6 {[%clk 0:02:44]} 7. O-O {[%clk 0:02:13]}  Bd6 {[%clk 0:02:45]} 8. Ne2 {[%clk 0:02:09]}  O-O {[%clk 0:02:45]} 9. b3 {[%clk 0:02:08]}  b6 {[%clk 0:02:44]} 10. Bb2 {[%clk 0:02:09]}  Bb7 {[%clk 0:02:45]} 11. Ne5 {[%clk 0:02:08]}  Nd7 {[%clk 0:02:45]} 12. Rc1 {[%clk 0:02:00]}  Rc8 {[%clk 0:02:41]} 13. f3 {[%clk 0:01:52]}  Nec5 {[%clk 0:02:41]} 14. Bb1 {[%clk 0:01:36]}  Bxe5 {[%clk 0:02:41]} 15. dxe5 {[%clk 0:01:36]}  Qc7 {[%clk 0:02:41]} 16. cxd5 {[%clk 0:01:25]}  exd5 {[%clk 0:02:42]} 17. b4 {[%clk 0:01:21]}  Ne6 {[%clk 0:02:42]} 18. f4 {[%clk 0:01:20]}  Rf7 {[%clk 0:02:40]} 19. Nd4 {[%clk 0:01:19]}  Nxd4 {[%clk 0:02:40]} 20. exd4 {[%clk 0:01:18]}  Nf8 {[%clk 0:02:40]} 21. b5 {[%clk 0:00:55]}  c5 {[%clk 0:02:37]} 22. Ba3 {[%clk 0:00:54]}  Ne6 {[%clk 0:02:36]} 23. dxc5 {[%clk 0:00:51]}  bxc5 {[%clk 0:02:36]} 24. Bb2 {[%clk 0:00:43]}  Qb6 {[%clk 0:02:35]} 25. a4 {[%clk 0:00:42]}  a6 {[%clk 0:02:34]} 26. Qe2 {[%clk 0:00:41]}  c4+ {[%clk 0:02:33]} 27. Qf2 {[%clk 0:00:40]}  axb5 {[%clk 0:02:28]} 28. Qxb6 {[%clk 0:00:40]} 1-0


[Site "https://www.chess.com"]

[Event "Titled Tuesday Blitz July 25 Late 2023"]
[White "Salimova, Nurgyul"]
[Black "Kostiukov, Alexandr"]
[WhiteFideId "2915138"]
[BlackFideId "14108100"]
[WhiteElo "2669"]
[BlackElo "2353"]
[Result "1-0"]
[Round "1"]
[TimeControl "180+2"]
[Date "2023.07.25"]
[WhiteClock "0:01:20"]
[BlackClock "0:00:00"]
[Board "108"]

1. e4 {[%clk 0:02:58]}  c5 {[%clk 0:02:57]} 2. Nf3 {[%clk 0:02:58]}  g6 {[%clk 0:02:56]} 3. c4 {[%clk 0:02:57]}  Bg7 {[%clk 0:02:55]} 4. d4 {[%clk 0:02:58]}  cxd4 {[%clk 0:02:55]} 5. Nxd4 {[%clk 0:02:59]}  Nc6 {[%clk 0:02:50]} 6. Be3 {[%clk 0:02:59]}  Nf6 {[%clk 0:02:48]} 7. Nc3 {[%clk 0:02:59]}  Nxd4 {[%clk 0:02:48]} 8. Bxd4 {[%clk 0:02:59]}  Qa5 {[%clk 0:02:48]} 9. Be2 {[%clk 0:02:51]}  O-O {[%clk 0:02:47]} 10. O-O {[%clk 0:02:51]}  d6 {[%clk 0:02:47]} 11. Rb1 {[%clk 0:02:41]}  Be6 {[%clk 0:02:38]} 12. b4 {[%clk 0:02:40]}  Qd8 {[%clk 0:02:33]} 13. Qd3 {[%clk 0:02:33]}  Nd7 {[%clk 0:02:29]} 14. Bxg7 {[%clk 0:02:28]}  Kxg7 {[%clk 0:02:29]} 15. f4 {[%clk 0:02:25]}  f6 {[%clk 0:02:22]} 16. Rfc1 {[%clk 0:02:13]}  a5 {[%clk 0:02:08]} 17. a3 {[%clk 0:02:09]}  axb4 {[%clk 0:02:07]} 18. axb4 {[%clk 0:02:10]}  Ra3 {[%clk 0:02:04]} 19. Qd4 {[%clk 0:01:56]}  Qb6 {[%clk 0:01:50]} 20. Qxb6 {[%clk 0:01:56]}  Nxb6 {[%clk 0:01:49]} 21. c5 {[%clk 0:01:57]}  dxc5 {[%clk 0:01:06]} 22. bxc5 {[%clk 0:01:58]}  Nd7 {[%clk 0:01:06]} 23. Rxb7 {[%clk 0:01:56]}  Nxc5 {[%clk 0:00:23]} 24. Rxe7+ {[%clk 0:01:57]}  Rf7 {[%clk 0:00:21]} 25. Re8 {[%clk 0:01:53]}  Nb3 {[%clk 0:00:13]} 26. Rd1 {[%clk 0:01:53]}  Bd7 {[%clk 0:00:05]} 27. Rd8 {[%clk 0:01:53]}  Nc5 {[%clk 0:00:04]} 28. Rc1 {[%clk 0:01:30]}  Nb3 {[%clk 0:00:02]} 29. Rd1 {[%clk 0:01:30]}  Nc5 {[%clk 0:00:00]} 30. Bc4 {[%clk 0:01:20]} 1-0


[Site "https://www.chess.com"]

[Event "Titled Tuesday Blitz July 25 Late 2023"]
[White "Skuhala, Barbara"]
[Black "Weetik, Vjacheslav"]
[WhiteFideId "14605465"]
[BlackFideId "4153472"]
[WhiteElo "2353"]
[BlackElo "2667"]
[Result "0-1"]
[Round "1"]
[TimeControl "180+2"]
[Date "2023.07.25"]
[WhiteClock "0:01:10"]
[BlackClock "0:00:15"]
[Board "109"]

1. e4 {[%clk 0:02:59]}  c6 {[%clk 0:02:55]} 2. d4 {[%clk 0:02:59]}  d5 {[%clk 0:02:56]} 3. f3 {[%clk 0:02:59]}  dxe4 {[%clk 0:02:55]} 4. fxe4 {[%clk 0:02:58]}  e5 {[%clk 0:02:56]} 5. Nf3 {[%clk 0:02:58]}  Bg4 {[%clk 0:02:57]} 6. Bc4 {[%clk 0:02:58]}  Nd7 {[%clk 0:02:56]} 7. O-O {[%clk 0:02:58]}  Bh5 {[%clk 0:02:46]} 8. c3 {[%clk 0:02:57]}  Bd6 {[%clk 0:02:40]} 9. Qb3 {[%clk 0:02:52]}  b5 {[%clk 0:02:32]} 10. Bd3 {[%clk 0:02:48]}  Ngf6 {[%clk 0:02:29]} 11. Nbd2 {[%clk 0:02:46]}  O-O {[%clk 0:02:28]} 12. Nh4 {[%clk 0:02:40]}  Nc5 {[%clk 0:01:51]} 13. Qc2 {[%clk 0:02:35]}  Nxd3 {[%clk 0:01:50]} 14. Qxd3 {[%clk 0:02:35]}  c5 {[%clk 0:01:42]} 15. d5 {[%clk 0:02:34]}  c4 {[%clk 0:01:41]} 16. Qg3 {[%clk 0:02:34]}  Re8 {[%clk 0:01:30]} 17. Nf5 {[%clk 0:02:31]}  Bc5+ {[%clk 0:01:29]} 18. Kh1 {[%clk 0:02:31]}  Bg6 {[%clk 0:01:30]} 19. b3 {[%clk 0:02:22]}  Bf8 {[%clk 0:01:00]} 20. bxc4 {[%clk 0:02:21]}  bxc4 {[%clk 0:01:00]} 21. Nxc4 {[%clk 0:02:21]}  Nxe4 {[%clk 0:01:00]} 22. Qd3 {[%clk 0:02:10]}  Nc5 {[%clk 0:00:47]} 23. Qe3 {[%clk 0:02:08]}  Qxd5 {[%clk 0:00:45]} 24. Nd2 {[%clk 0:02:06]}  Nd3 {[%clk 0:00:38]} 25. c4 {[%clk 0:01:56]}  Qd7 {[%clk 0:00:38]} 26. Nh4 {[%clk 0:01:52]}  Bc5 {[%clk 0:00:35]} 27. Qg3 {[%clk 0:01:41]}  Qd4 {[%clk 0:00:32]} 28. Nb3 {[%clk 0:01:33]}  Nf2+ {[%clk 0:00:32]} 29. Kg1 {[%clk 0:01:28]}  Nh3+ {[%clk 0:00:17]} 30. Kh1 {[%clk 0:01:27]}  Nf2+ {[%clk 0:00:18]} 31. Kg1 {[%clk 0:01:27]}  Ne4+ {[%clk 0:00:15]} 32. Nxd4 {[%clk 0:01:13]}  Nxg3 {[%clk 0:00:15]} 33. hxg3 {[%clk 0:01:10]}  Bxd4+ {[%clk 0:00:15]} 0-1


[Site "https://www.chess.com"]

[Event "Titled Tuesday Blitz July 25 Late 2023"]
[White "Wieczorek, Oskar"]
[Black "Papp, Petra"]
[WhiteFideId "1133950"]
[BlackFideId "739049"]
[WhiteElo "2657"]
[BlackElo "2347"]
[Result "1-0"]
[Round "1"]
[TimeControl "180+2"]
[Date "2023.07.25"]
[WhiteClock "0:01:08"]
[BlackClock "0:00:16"]
[Board "112"]

1. e4 {[%clk 0:02:52]}  c6 {[%clk 0:02:52]} 2. d4 {[%clk 0:02:52]}  d5 {[%clk 0:02:52]} 3. Nd2 {[%clk 0:02:53]}  dxe4 {[%clk 0:02:52]} 4. Nxe4 {[%clk 0:02:54]}  Nf6 {[%clk 0:02:53]} 5. Nxf6+ {[%clk 0:02:54]}  exf6 {[%clk 0:02:53]} 6. Be2 {[%clk 0:02:55]}  Bd6 {[%clk 0:02:53]} 7. Bf3 {[%clk 0:02:56]}  O-O {[%clk 0:02:52]} 8. Ne2 {[%clk 0:02:56]}  Re8 {[%clk 0:02:51]} 9. O-O {[%clk 0:02:57]}  Nd7 {[%clk 0:02:51]} 10. c4 {[%clk 0:02:57]}  Nf8 {[%clk 0:02:51]} 11. Nc3 {[%clk 0:02:57]}  Bf5 {[%clk 0:02:46]} 12. Be3 {[%clk 0:02:53]}  Ng6 {[%clk 0:02:42]} 13. c5 {[%clk 0:02:53]}  Bf4 {[%clk 0:02:39]} 14. Qd2 {[%clk 0:02:33]}  Qc7 {[%clk 0:02:22]} 15. g3 {[%clk 0:02:33]}  Bxe3 {[%clk 0:02:20]} 16. fxe3 {[%clk 0:02:34]}  Bh3 {[%clk 0:02:20]} 17. Rfe1 {[%clk 0:02:31]}  Rad8 {[%clk 0:02:17]} 18. Qf2 {[%clk 0:02:30]}  Qd7 {[%clk 0:02:09]} 19. Ne4 {[%clk 0:02:22]}  Bg4 {[%clk 0:02:03]} 20. Nd6 {[%clk 0:02:23]}  Re7 {[%clk 0:01:41]} 21. e4 {[%clk 0:02:16]}  h5 {[%clk 0:01:34]} 22. Rad1 {[%clk 0:02:10]}  h4 {[%clk 0:01:30]} 23. Bxg4 {[%clk 0:02:06]}  Qxg4 {[%clk 0:01:30]} 24. Qf5 {[%clk 0:02:06]}  Qxf5 {[%clk 0:01:19]} 25. exf5 {[%clk 0:01:43]}  Rxe1+ {[%clk 0:01:17]} 26. Rxe1 {[%clk 0:01:44]}  Nf8 {[%clk 0:01:17]} 27. Re7 {[%clk 0:01:40]}  b6 {[%clk 0:00:41]} 28. Rxa7 {[%clk 0:01:34]}  bxc5 {[%clk 0:00:39]} 29. dxc5 {[%clk 0:01:34]}  Nh7 {[%clk 0:00:40]} 30. gxh4 {[%clk 0:01:29]}  Rb8 {[%clk 0:00:35]} 31. b3 {[%clk 0:01:20]}  Rb4 {[%clk 0:00:34]} 32. Ra4 {[%clk 0:01:19]}  Rb8 {[%clk 0:00:31]} 33. b4 {[%clk 0:01:17]}  g6 {[%clk 0:00:29]} 34. fxg6 {[%clk 0:01:08]}  fxg6 {[%clk 0:00:28]} 35. a3 {[%clk 0:01:08]}  Nf8 {[%clk 0:00:26]} 36. Ra6 {[%clk 0:01:08]}  Nd7 {[%clk 0:00:21]} 37. Rxc6 {[%clk 0:01:07]}  Ne5 {[%clk 0:00:16]} 38. Rc8+ {[%clk 0:01:08]} 1-0


[Site "https://www.chess.com"]

[Event "Titled Tuesday Blitz July 25 Late 2023"]
[White "Andrews, Todd"]
[Black "Shuvalova, Polina"]
[WhiteFideId "2012456"]
[BlackFideId "24171760"]
[WhiteElo "2345"]
[BlackElo "2655"]
[Result "1-0"]
[Round "1"]
[TimeControl "180+2"]
[Date "2023.07.25"]
[WhiteClock "0:00:19"]
[BlackClock "0:00:05"]
[Board "113"]

1. e4 {[%clk 0:03:00]}  c6 {[%clk 0:02:59]} 2. c4 {[%clk 0:03:00]}  d5 {[%clk 0:03:00]} 3. exd5 {[%clk 0:03:00]}  cxd5 {[%clk 0:03:00]} 4. cxd5 {[%clk 0:03:01]}  Nf6 {[%clk 0:03:01]} 5. Nc3 {[%clk 0:03:02]}  Nxd5 {[%clk 0:03:01]} 6. Nf3 {[%clk 0:03:03]}  Nc6 {[%clk 0:03:01]} 7. Bc4 {[%clk 0:03:03]}  Nxc3 {[%clk 0:02:57]} 8. bxc3 {[%clk 0:03:03]}  e6 {[%clk 0:02:57]} 9. O-O {[%clk 0:03:02]}  Be7 {[%clk 0:02:57]} 10. d4 {[%clk 0:03:02]}  O-O {[%clk 0:02:57]} 11. Bd3 {[%clk 0:03:03]}  b6 {[%clk 0:02:50]} 12. Re1 {[%clk 0:02:55]}  Bb7 {[%clk 0:02:49]} 13. Bc2 {[%clk 0:02:52]}  Bf6 {[%clk 0:02:37]} 14. Qd3 {[%clk 0:02:50]}  g6 {[%clk 0:02:37]} 15. h4 {[%clk 0:02:46]}  Rc8 {[%clk 0:02:31]} 16. h5 {[%clk 0:02:46]}  Ne7 {[%clk 0:02:23]} 17. hxg6 {[%clk 0:02:31]}  hxg6 {[%clk 0:02:22]} 18. Bh6 {[%clk 0:02:30]}  Re8 {[%clk 0:02:16]} 19. Ne5 {[%clk 0:02:25]}  Qd5 {[%clk 0:02:12]} 20. f3 {[%clk 0:01:51]}  Red8 {[%clk 0:02:04]} 21. Bb3 {[%clk 0:01:42]}  Qd6 {[%clk 0:01:28]} 22. Nxf7 {[%clk 0:01:32]}  Kxf7 {[%clk 0:01:24]} 23. Rxe6 {[%clk 0:01:31]}  Qxe6 {[%clk 0:01:24]} 24. Bxe6+ {[%clk 0:01:31]}  Kxe6 {[%clk 0:01:25]} 25. Re1+ {[%clk 0:01:15]}  Kf7 {[%clk 0:01:25]} 26. Qe3 {[%clk 0:01:04]}  Bd5 {[%clk 0:01:20]} 27. Bg5 {[%clk 0:01:02]}  Bxg5 {[%clk 0:01:10]} 28. Qxg5 {[%clk 0:01:02]}  Re8 {[%clk 0:00:37]} 29. Rxe7+ {[%clk 0:00:59]}  Rxe7 {[%clk 0:00:37]} 30. Qxd5+ {[%clk 0:00:59]}  Kg7 {[%clk 0:00:35]} 31. Qd6 {[%clk 0:00:52]}  Rec7 {[%clk 0:00:33]} 32. d5 {[%clk 0:00:47]}  Rf7 {[%clk 0:00:17]} 33. Qe5+ {[%clk 0:00:45]}  Kg8 {[%clk 0:00:12]} 34. d6 {[%clk 0:00:44]}  Rd8 {[%clk 0:00:12]} 35. Qd5 {[%clk 0:00:36]}  Kg7 {[%clk 0:00:12]} 36. Qd4+ {[%clk 0:00:36]}  Kg8 {[%clk 0:00:13]} 37. c4 {[%clk 0:00:36]}  Rfd7 {[%clk 0:00:12]} 38. c5 {[%clk 0:00:35]}  bxc5 {[%clk 0:00:12]} 39. Qxc5 {[%clk 0:00:35]}  Kg7 {[%clk 0:00:11]} 40. Qe5+ {[%clk 0:00:34]}  Kh7 {[%clk 0:00:10]} 41. Qd4 {[%clk 0:00:32]}  Kg8 {[%clk 0:00:09]} 42. a4 {[%clk 0:00:32]}  a6 {[%clk 0:00:08]} 43. Qd5+ {[%clk 0:00:31]}  Kh7 {[%clk 0:00:07]} 44. a5 {[%clk 0:00:25]}  Rxd6 {[%clk 0:00:07]} 45. Qf7+ {[%clk 0:00:25]}  Kh6 {[%clk 0:00:08]} 46. Kh2 {[%clk 0:00:25]}  Rd5 {[%clk 0:00:05]} 47. Kg3 {[%clk 0:00:23]}  Rg5+ {[%clk 0:00:05]} 48. Kf2 {[%clk 0:00:22]}  Rd2+ {[%clk 0:00:05]} 49. Ke3 {[%clk 0:00:23]}  Rgxg2 {[%clk 0:00:05]} 50. Qf4+ {[%clk 0:00:20]}  Kg7 {[%clk 0:00:05]} 51. Qc7+ {[%clk 0:00:17]}  Kf6 {[%clk 0:00:04]} 52. Qc6+ {[%clk 0:00:17]}  Ke7 {[%clk 0:00:04]} 53. Qxa6 {[%clk 0:00:16]}  Rge2+ {[%clk 0:00:03]} 54. Qxe2 {[%clk 0:00:16]}  Rxe2+ {[%clk 0:00:03]} 55. Kxe2 {[%clk 0:00:17]}  Kd6 {[%clk 0:00:04]} 56. Ke3 {[%clk 0:00:17]}  Kc6 {[%clk 0:00:04]} 57. Kf4 {[%clk 0:00:18]}  Kb5 {[%clk 0:00:05]} 58. Kg5 {[%clk 0:00:19]}  Kxa5 {[%clk 0:00:05]} 59. Kxg6 {[%clk 0:00:19]} 1-0


[Site "https://www.chess.com"]

[Event "Titled Tuesday Blitz July 25 Late 2023"]
[White "Bernabeu Lopez, Carlos Javier"]
[Black "Yolosz"]
[WhiteFideId "2235366"]
[WhiteElo "2650"]
[BlackElo "2343"]
[Result "1-0"]
[Round "1"]
[TimeControl "180+2"]
[Date "2023.07.25"]
[WhiteClock "0:02:23"]
[BlackClock "0:00:07"]
[Board "114"]

1. e4 {[%clk 0:02:59]}  c5 {[%clk 0:02:57]} 2. Nf3 {[%clk 0:02:59]}  Nc6 {[%clk 0:02:53]} 3. Bb5 {[%clk 0:02:58]}  d6 {[%clk 0:02:52]} 4. O-O {[%clk 0:02:58]}  Bd7 {[%clk 0:02:52]} 5. c4 {[%clk 0:02:57]}  a6 {[%clk 0:02:49]} 6. Bxc6 {[%clk 0:02:57]}  Bxc6 {[%clk 0:02:47]} 7. Nc3 {[%clk 0:02:58]}  Nf6 {[%clk 0:02:43]} 8. d3 {[%clk 0:02:56]}  g6 {[%clk 0:02:43]} 9. Bg5 {[%clk 0:02:57]}  Bg7 {[%clk 0:02:43]} 10. Qd2 {[%clk 0:02:58]}  O-O {[%clk 0:02:40]} 11. Bh6 {[%clk 0:02:58]}  b5 {[%clk 0:02:28]} 12. Bxg7 {[%clk 0:02:56]}  Kxg7 {[%clk 0:02:29]} 13. b3 {[%clk 0:02:57]}  e5 {[%clk 0:02:19]} 14. Ne1 {[%clk 0:02:54]}  Nh5 {[%clk 0:02:15]} 15. Ne2 {[%clk 0:02:49]}  f5 {[%clk 0:01:55]} 16. exf5 {[%clk 0:02:50]}  Rxf5 {[%clk 0:01:54]} 17. f4 {[%clk 0:02:40]}  exf4 {[%clk 0:01:23]} 18. Nxf4 {[%clk 0:02:41]}  Nxf4 {[%clk 0:01:16]} 19. Rxf4 {[%clk 0:02:42]}  Qf6 {[%clk 0:01:15]} 20. Rxf5 {[%clk 0:02:40]}  Qxa1 {[%clk 0:01:10]} 21. Rf1 {[%clk 0:02:39]}  Re8 {[%clk 0:01:05]} 22. Nf3 {[%clk 0:02:37]}  Qf6 {[%clk 0:01:01]} 23. h3 {[%clk 0:02:35]}  Bxf3 {[%clk 0:01:00]} 24. Rxf3 {[%clk 0:02:36]}  Qd4+ {[%clk 0:01:00]} 25. Kh2 {[%clk 0:02:37]}  bxc4 {[%clk 0:01:00]} 26. bxc4 {[%clk 0:02:36]}  Qe5+ {[%clk 0:00:56]} 27. Rg3 {[%clk 0:02:30]}  h5 {[%clk 0:00:51]} 28. Qg5 {[%clk 0:02:30]}  Qxg5 {[%clk 0:00:48]} 29. Rxg5 {[%clk 0:02:31]}  Re3 {[%clk 0:00:47]} 30. Rd5 {[%clk 0:02:31]}  Re6 {[%clk 0:00:45]} 31. Kg3 {[%clk 0:02:31]}  Kf6 {[%clk 0:00:45]} 32. Kf2 {[%clk 0:02:30]}  Ke7 {[%clk 0:00:42]} 33. g4 {[%clk 0:02:31]}  h4 {[%clk 0:00:38]} 34. d4 {[%clk 0:02:28]}  cxd4 {[%clk 0:00:31]} 35. Rxd4 {[%clk 0:02:29]}  Rf6+ {[%clk 0:00:31]} 36. Ke3 {[%clk 0:02:29]}  Rf1 {[%clk 0:00:24]} 37. Re4+ {[%clk 0:02:27]}  Kd7 {[%clk 0:00:23]} 38. Rf4 {[%clk 0:02:27]}  Ra1 {[%clk 0:00:20]} 39. Rf2 {[%clk 0:02:25]}  Rh1 {[%clk 0:00:20]} 40. Rf3 {[%clk 0:02:25]}  Ra1 {[%clk 0:00:20]} 41. Kf4 {[%clk 0:02:25]}  Rxa2 {[%clk 0:00:19]} 42. Kg5 {[%clk 0:02:26]}  a5 {[%clk 0:00:19]} 43. Kxg6 {[%clk 0:02:26]}  a4 {[%clk 0:00:19]} 44. Kh6 {[%clk 0:02:22]}  a3 {[%clk 0:00:15]} 45. g5 {[%clk 0:02:22]}  Ra1 {[%clk 0:00:15]} 46. g6 {[%clk 0:02:22]}  a2 {[%clk 0:00:15]} 47. Rf2 {[%clk 0:02:21]}  Ke7 {[%clk 0:00:09]} 48. g7 {[%clk 0:02:21]}  Rg1 {[%clk 0:00:08]} 49. Rxa2 {[%clk 0:02:22]}  Kf6 {[%clk 0:00:09]} 50. Rf2+ {[%clk 0:02:22]}  Ke7 {[%clk 0:00:07]} 51. Kh7 {[%clk 0:02:23]} 1-0


[Site "https://www.chess.com"]

[Event "Titled Tuesday Blitz July 25 Late 2023"]
[White "crosky"]
[Black "Milosevic, Milos"]
[BlackFideId "964875"]
[WhiteElo "2342"]
[BlackElo "2645"]
[Result "1-0"]
[Round "1"]
[TimeControl "180+2"]
[Date "2023.07.25"]
[WhiteClock "0:00:26"]
[BlackClock "0:00:00"]
[Board "115"]

1. c4 {[%clk 0:02:59]}  d6 {[%clk 0:02:59]} 2. Nc3 {[%clk 0:02:58]}  Nf6 {[%clk 0:02:58]} 3. d4 {[%clk 0:02:56]}  e5 {[%clk 0:02:58]} 4. Nf3 {[%clk 0:02:55]}  Nbd7 {[%clk 0:02:58]} 5. e4 {[%clk 0:02:55]}  g6 {[%clk 0:02:58]} 6. Be2 {[%clk 0:02:50]}  Bg7 {[%clk 0:02:58]} 7. O-O {[%clk 0:02:50]}  O-O {[%clk 0:02:57]} 8. Re1 {[%clk 0:02:50]}  h6 {[%clk 0:02:51]} 9. Bf1 {[%clk 0:02:47]}  Qe7 {[%clk 0:02:51]} 10. Be3 {[%clk 0:02:38]}  Ng4 {[%clk 0:02:44]} 11. Bd2 {[%clk 0:02:38]}  exd4 {[%clk 0:02:41]} 12. Nd5 {[%clk 0:02:39]}  Qd8 {[%clk 0:02:42]} 13. h3 {[%clk 0:02:39]}  Nge5 {[%clk 0:02:40]} 14. Nxd4 {[%clk 0:02:37]}  c6 {[%clk 0:02:25]} 15. Nc3 {[%clk 0:02:31]}  Nxc4 {[%clk 0:02:21]} 16. Bxc4 {[%clk 0:02:25]}  Bxd4 {[%clk 0:02:21]} 17. Bxh6 {[%clk 0:02:25]}  Bxf2+ {[%clk 0:02:21]} 18. Kxf2 {[%clk 0:02:25]}  Qh4+ {[%clk 0:02:21]} 19. Kg1 {[%clk 0:02:25]}  Qxh6 {[%clk 0:02:22]} 20. Qxd6 {[%clk 0:02:26]}  Qg5 {[%clk 0:01:52]} 21. e5 {[%clk 0:02:11]}  Nb6 {[%clk 0:01:52]} 22. Bf1 {[%clk 0:01:46]}  Be6 {[%clk 0:01:43]} 23. Ne4 {[%clk 0:01:45]}  Qf4 {[%clk 0:01:36]} 24. Nf6+ {[%clk 0:01:28]}  Kg7 {[%clk 0:01:32]} 25. Re4 {[%clk 0:01:28]}  Qg3 {[%clk 0:01:23]} 26. Rae1 {[%clk 0:01:17]}  Rad8 {[%clk 0:01:22]} 27. Qb4 {[%clk 0:01:17]}  Rh8 {[%clk 0:00:47]} 28. R1e3 {[%clk 0:01:14]}  Qg5 {[%clk 0:00:47]} 29. Kh2 {[%clk 0:01:07]}  Nd5 {[%clk 0:00:33]} 30. Nxd5 {[%clk 0:01:06]}  cxd5 {[%clk 0:00:33]} 31. Rg3 {[%clk 0:00:45]}  Qxg3+ {[%clk 0:00:18]} 32. Kxg3 {[%clk 0:00:46]}  dxe4 {[%clk 0:00:18]} 33. Qxe4 {[%clk 0:00:47]}  Rh5 {[%clk 0:00:18]} 34. Be2 {[%clk 0:00:42]}  Rg5+ {[%clk 0:00:15]} 35. Kh2 {[%clk 0:00:42]}  Rd5 {[%clk 0:00:14]} 36. Bf3 {[%clk 0:00:30]}  Rgxe5 {[%clk 0:00:11]} 37. Qb4 {[%clk 0:00:31]}  Rb5 {[%clk 0:00:10]} 38. Qe7 {[%clk 0:00:31]}  Rxb2 {[%clk 0:00:09]} 39. a4 {[%clk 0:00:29]}  b6 {[%clk 0:00:04]} 40. Qd6 {[%clk 0:00:28]}  Kf6 {[%clk 0:00:01]} 41. Qd4 {[%clk 0:00:28]}  Rb3 {[%clk 0:00:01]} 42. Qf4+ {[%clk 0:00:25]}  Rf5 {[%clk 0:00:00]} 43. Qh4+ {[%clk 0:00:26]} 1-0


[Site "https://www.chess.com"]

[Event "Titled Tuesday Blitz July 25 Late 2023"]
[White "Ehlvest, Jaan"]
[Black "Alahakoon, Isuru"]
[WhiteFideId "4500016"]
[BlackFideId "9900993"]
[WhiteElo "2633"]
[BlackElo "2341"]
[Result "1/2-1/2"]
[Round "1"]
[TimeControl "180+2"]
[Date "2023.07.25"]
[WhiteClock "0:01:05"]
[BlackClock "0:00:07"]
[Board "116"]

1. e4 {[%clk 0:02:56]}  d5 {[%clk 0:02:59]} 2. exd5 {[%clk 0:02:55]}  Qxd5 {[%clk 0:03:00]} 3. Nc3 {[%clk 0:02:55]}  Qa5 {[%clk 0:02:58]} 4. g3 {[%clk 0:02:55]}  Nf6 {[%clk 0:02:57]} 5. Bg2 {[%clk 0:02:55]}  Bg4 {[%clk 0:02:58]} 6. Nf3 {[%clk 0:02:53]}  Nc6 {[%clk 0:02:57]} 7. h3 {[%clk 0:02:53]}  Bh5 {[%clk 0:02:57]} 8. O-O {[%clk 0:02:52]}  O-O-O {[%clk 0:02:56]} 9. b4 {[%clk 0:02:52]}  Qf5 {[%clk 0:02:34]} 10. g4 {[%clk 0:02:49]}  Nxg4 {[%clk 0:02:33]} 11. hxg4 {[%clk 0:02:49]}  Bxg4 {[%clk 0:02:34]} 12. Nh4 {[%clk 0:02:31]}  Qh5 {[%clk 0:02:33]} 13. f3 {[%clk 0:02:25]}  Bd7 {[%clk 0:02:22]} 14. b5 {[%clk 0:02:13]}  e5 {[%clk 0:02:11]} 15. Ne4 {[%clk 0:02:07]}  Nd4 {[%clk 0:01:53]} 16. c3 {[%clk 0:02:07]}  Ne6 {[%clk 0:01:44]} 17. f4 {[%clk 0:01:57]}  Qxh4 {[%clk 0:01:41]} 18. Qf3 {[%clk 0:01:56]}  c6 {[%clk 0:00:56]} 19. fxe5 {[%clk 0:01:54]}  Nc5 {[%clk 0:00:29]} 20. Nxc5 {[%clk 0:01:47]}  Bxc5+ {[%clk 0:00:30]} 21. d4 {[%clk 0:01:45]}  Bb6 {[%clk 0:00:30]} 22. a4 {[%clk 0:01:42]}  Be6 {[%clk 0:00:27]} 23. bxc6 {[%clk 0:01:40]}  Bd5 {[%clk 0:00:27]} 24. Qf5+ {[%clk 0:01:35]}  Be6 {[%clk 0:00:25]} 25. cxb7+ {[%clk 0:01:31]}  Kb8 {[%clk 0:00:25]} 26. Qf4 {[%clk 0:01:31]}  Rxd4 {[%clk 0:00:20]} 27. cxd4 {[%clk 0:01:29]}  Bxd4+ {[%clk 0:00:20]} 28. Be3 {[%clk 0:01:26]}  Qxf4 {[%clk 0:00:18]} 29. Rxf4 {[%clk 0:01:26]}  Bxe3+ {[%clk 0:00:17]} 30. Rf2 {[%clk 0:01:27]}  Rd8 {[%clk 0:00:15]} 31. Re1 {[%clk 0:01:20]}  Bxf2+ {[%clk 0:00:13]} 32. Kxf2 {[%clk 0:01:20]}  Bd5 {[%clk 0:00:14]} 33. e6 {[%clk 0:01:16]}  fxe6 {[%clk 0:00:13]} 34. Bxd5 {[%clk 0:01:15]}  exd5 {[%clk 0:00:11]} 35. Re7 {[%clk 0:01:14]}  d4 {[%clk 0:00:11]} 36. Ke2 {[%clk 0:01:14]}  d3+ {[%clk 0:00:11]} 37. Kd2 {[%clk 0:01:14]}  h5 {[%clk 0:00:11]} 38. Rxg7 {[%clk 0:01:12]}  h4 {[%clk 0:00:11]} 39. a5 {[%clk 0:01:12]}  Rd6 {[%clk 0:00:10]} 40. a6 {[%clk 0:01:09]}  Rxa6 {[%clk 0:00:10]} 41. Kxd3 {[%clk 0:01:09]}  Ra4 {[%clk 0:00:09]} 42. Rh7 {[%clk 0:01:09]}  h3 {[%clk 0:00:08]} 43. Kc3 {[%clk 0:01:08]}  Ra3+ {[%clk 0:00:08]} 44. Kb4 {[%clk 0:01:07]}  Rg3 {[%clk 0:00:08]} 45. Kb5 {[%clk 0:01:06]}  Rb3+ {[%clk 0:00:08]} 46. Kc6 {[%clk 0:01:06]}  Rc3+ {[%clk 0:00:07]} 47. Kb5 {[%clk 0:01:06]}  Rb3+ {[%clk 0:00:07]} 48. Ka6 {[%clk 0:01:06]}  Ra3+ {[%clk 0:00:07]} 49. Kb5 {[%clk 0:01:05]}  Rb3+ {[%clk 0:00:07]} 1/2-1/2


[Site "https://www.chess.com"]